[Event "Titled Tuesday Blitz December 7 2021"]
[White "Nakamura, Hikaru"]
[Black "Kamsky, Gata"]
[WhiteFideId "2016192"]
[BlackFideId "2000024"]
[WhiteElo "2884"]
[BlackElo "2645"]
[Result "1-0"]
[Round "10"]
[TimeControl "180+1"]
[Date "2021.12.07"]
[WhiteClock "0:00:20"]
[BlackClock "0:00:10"]

1. Nf3 {[%clk 0:03:00]}  Nf6 {[%clk 0:02:59]} 2. b3 {[%clk 0:02:59]}  g6 {[%clk 0:02:57]} 3. Bb2 {[%clk 0:02:59]}  Bg7 {[%clk 0:02:57]} 4. d4 {[%clk 0:02:59]}  O-O {[%clk 0:02:57]} 5. e3 {[%clk 0:03:00]}  d5 {[%clk 0:02:54]} 6. c4 {[%clk 0:02:59]}  c6 {[%clk 0:02:53]} 7. Bd3 {[%clk 0:02:58]}  Bg4 {[%clk 0:02:50]} 8. Nbd2 {[%clk 0:02:58]}  e6 {[%clk 0:02:49]} 9. h3 {[%clk 0:02:58]}  Bxf3 {[%clk 0:02:48]} 10. Nxf3 {[%clk 0:02:56]}  Qa5+ {[%clk 0:02:46]} 11. Ke2 {[%clk 0:02:51]}  Nbd7 {[%clk 0:02:42]} 12. Qc2 {[%clk 0:02:51]}  Rfe8 {[%clk 0:02:37]} 13. Rhd1 {[%clk 0:02:49]}  Qc7 {[%clk 0:02:27]} 14. Rac1 {[%clk 0:02:48]}  a5 {[%clk 0:02:26]} 15. a3 {[%clk 0:02:48]}  Bf8 {[%clk 0:02:22]} 16. c5 {[%clk 0:02:43]}  b5 {[%clk 0:02:19]} 17. b4 {[%clk 0:02:32]}  axb4 {[%clk 0:02:16]} 18. axb4 {[%clk 0:02:33]}  Ra4 {[%clk 0:02:12]} 19. Bc3 {[%clk 0:02:31]}  Rea8 {[%clk 0:02:12]} 20. Kf1 {[%clk 0:02:32]}  Ra2 {[%clk 0:02:09]} 21. Qb1 {[%clk 0:02:32]}  R2a3 {[%clk 0:01:59]} 22. Kg1 {[%clk 0:02:29]}  Bg7 {[%clk 0:01:56]} 23. Qc2 {[%clk 0:02:22]}  Ne8 {[%clk 0:01:54]} 24. e4 {[%clk 0:02:08]}  dxe4 {[%clk 0:01:53]} 25. Bxe4 {[%clk 0:02:08]}  Nef6 {[%clk 0:01:53]} 26. Bd3 {[%clk 0:02:00]}  Ra2 {[%clk 0:01:48]} 27. Qb1 {[%clk 0:01:58]}  Bh6 {[%clk 0:01:45]} 28. Rc2 {[%clk 0:01:57]}  Rxc2 {[%clk 0:01:44]} 29. Bxc2 {[%clk 0:01:52]}  Nd5 {[%clk 0:01:44]} 30. Be1 {[%clk 0:01:53]}  Qa7 {[%clk 0:01:34]} 31. Bb3 {[%clk 0:01:52]}  Qa3 {[%clk 0:01:28]} 32. Nh2 {[%clk 0:01:38]}  Bg7 {[%clk 0:01:26]} 33. Ng4 {[%clk 0:01:34]}  h5 {[%clk 0:01:24]} 34. Ne3 {[%clk 0:01:35]}  N7f6 {[%clk 0:01:22]} 35. Nc2 {[%clk 0:01:31]}  Qa7 {[%clk 0:01:21]} 36. h4 {[%clk 0:01:31]}  Qc7 {[%clk 0:01:19]} 37. g3 {[%clk 0:01:31]}  Ne4 {[%clk 0:01:16]} 38. Rd3 {[%clk 0:01:31]}  Nef6 {[%clk 0:01:10]} 39. Qd1 {[%clk 0:01:31]}  Bh6 {[%clk 0:01:08]} 40. Qe2 {[%clk 0:01:30]}  Kg7 {[%clk 0:01:05]} 41. Rf3 {[%clk 0:01:30]}  Re8 {[%clk 0:01:01]} 42. Qd1 {[%clk 0:01:22]}  Ra8 {[%clk 0:00:54]} 43. Kg2 {[%clk 0:01:17]}  Kg8 {[%clk 0:00:52]} 44. Na1 {[%clk 0:01:15]}  Bg7 {[%clk 0:00:48]} 45. Bc2 {[%clk 0:01:13]}  Ra2 {[%clk 0:00:41]} 46. Nb3 {[%clk 0:01:12]}  Ra8 {[%clk 0:00:40]} 47. Na5 {[%clk 0:01:08]}  Rd8 {[%clk 0:00:39]} 48. Qe2 {[%clk 0:01:05]}  Ne7 {[%clk 0:00:37]} 49. Bd2 {[%clk 0:01:00]}  Nfd5 {[%clk 0:00:33]} 50. Bg5 {[%clk 0:00:57]}  Rf8 {[%clk 0:00:31]} 51. Qd2 {[%clk 0:00:55]}  Nf5 {[%clk 0:00:31]} 52. Bxf5 {[%clk 0:00:53]}  exf5 {[%clk 0:00:31]} 53. Bf4 {[%clk 0:00:51]}  Qd7 {[%clk 0:00:29]} 54. Be5 {[%clk 0:00:48]}  f6 {[%clk 0:00:27]} 55. Bd6 {[%clk 0:00:47]}  Re8 {[%clk 0:00:27]} 56. Ra3 {[%clk 0:00:47]}  Kh7 {[%clk 0:00:25]} 57. Nb3 {[%clk 0:00:46]}  f4 {[%clk 0:00:23]} 58. Bxf4 {[%clk 0:00:44]}  Qf5 {[%clk 0:00:23]} 59. Nc1 {[%clk 0:00:37]}  Qe4+ {[%clk 0:00:21]} 60. Kh2 {[%clk 0:00:27]}  Nxf4 {[%clk 0:00:16]} 61. Qxf4 {[%clk 0:00:26]}  Qxf4 {[%clk 0:00:13]} 62. gxf4 {[%clk 0:00:27]}  Re4 {[%clk 0:00:12]} 63. Nb3 {[%clk 0:00:23]}  Rxf4 {[%clk 0:00:11]} 64. Kg2 {[%clk 0:00:22]}  Rxh4 {[%clk 0:00:10]} 65. Ra6 {[%clk 0:00:20]}  f5 {[%clk 0:00:10]} 66. Rxc6 {[%clk 0:00:20]}  Bxd4 {[%clk 0:00:10]} 67. Rc7+ {[%clk 0:00:19]}  Kh6 {[%clk 0:00:10]} 68. c6 {[%clk 0:00:20]}  Be5 {[%clk 0:00:10]} 69. Re7 {[%clk 0:00:20]}  Rxb4 {[%clk 0:00:10]} 70. Rxe5 {[%clk 0:00:20]}  Rxb3 {[%clk 0:00:10]} 71. Rc5 {[%clk 0:00:20]} 1-0


[Site "https://www.chess.com"]

[Event "Titled Tuesday Blitz December 7 2021"]
[White "Navalgund, Niranjan"]
[Black "Artemenko, Oleg"]
[WhiteFideId "5030854"]
[BlackFideId "14201798"]
[WhiteElo "2290"]
[BlackElo "2287"]
[Result "1-0"]
[Round "10"]
[TimeControl "180+1"]
[Date "2021.12.07"]
[WhiteClock "0:00:13"]
[BlackClock "0:00:15"]

1. d4 {[%clk 0:03:00]}  Nf6 {[%clk 0:02:59]} 2. Nf3 {[%clk 0:03:00]}  e6 {[%clk 0:02:59]} 3. Bg5 {[%clk 0:02:58]}  c5 {[%clk 0:02:58]} 4. c3 {[%clk 0:02:58]}  Nc6 {[%clk 0:02:58]} 5. Nbd2 {[%clk 0:02:53]}  Qa5 {[%clk 0:02:52]} 6. Bxf6 {[%clk 0:02:50]}  gxf6 {[%clk 0:02:51]} 7. dxc5 {[%clk 0:02:47]}  Qxc5 {[%clk 0:02:47]} 8. Ne4 {[%clk 0:02:46]}  Qe7 {[%clk 0:02:46]} 9. e3 {[%clk 0:02:39]}  d5 {[%clk 0:02:45]} 10. Ng3 {[%clk 0:02:39]}  h5 {[%clk 0:02:45]} 11. h4 {[%clk 0:02:38]}  Qc5 {[%clk 0:02:42]} 12. Nd4 {[%clk 0:02:35]}  e5 {[%clk 0:02:40]} 13. Nxc6 {[%clk 0:02:33]}  bxc6 {[%clk 0:02:41]} 14. Nxh5 {[%clk 0:02:30]}  Be7 {[%clk 0:02:38]} 15. Qf3 {[%clk 0:02:27]}  Qd6 {[%clk 0:02:34]} 16. Ng7+ {[%clk 0:02:27]}  Kd8 {[%clk 0:02:32]} 17. Nf5 {[%clk 0:02:28]}  Bxf5 {[%clk 0:02:32]} 18. Qxf5 {[%clk 0:02:28]}  Rb8 {[%clk 0:02:33]} 19. Qc2 {[%clk 0:02:24]}  f5 {[%clk 0:02:25]} 20. O-O-O {[%clk 0:01:59]}  e4 {[%clk 0:02:16]} 21. g3 {[%clk 0:01:55]}  Kc7 {[%clk 0:02:12]} 22. Bh3 {[%clk 0:01:55]}  Qf6 {[%clk 0:02:02]} 23. Qa4 {[%clk 0:01:53]}  Rb7 {[%clk 0:02:00]} 24. Rd2 {[%clk 0:01:44]}  Rhb8 {[%clk 0:01:59]} 25. Rhd1 {[%clk 0:01:29]}  Rb6 {[%clk 0:01:33]} 26. Rc2 {[%clk 0:01:24]}  R8b7 {[%clk 0:01:32]} 27. h5 {[%clk 0:01:17]}  Bd6 {[%clk 0:01:25]} 28. h6 {[%clk 0:01:12]}  Qxh6 {[%clk 0:01:24]} 29. Bxf5 {[%clk 0:01:12]}  Qf6 {[%clk 0:01:24]} 30. g4 {[%clk 0:01:12]}  Qe5 {[%clk 0:01:24]} 31. Qd4 {[%clk 0:01:05]}  Rb8 {[%clk 0:01:14]} 32. Qxe5 {[%clk 0:01:02]}  Bxe5 {[%clk 0:01:15]} 33. Rh1 {[%clk 0:01:01]}  Kd6 {[%clk 0:01:12]} 34. Rh7 {[%clk 0:01:01]}  R6b7 {[%clk 0:01:12]} 35. Rd2 {[%clk 0:00:57]}  Ke7 {[%clk 0:01:03]} 36. Rc2 {[%clk 0:00:34]}  Kd6 {[%clk 0:01:00]} 37. Rh6+ {[%clk 0:00:32]}  f6 {[%clk 0:00:58]} 38. b3 {[%clk 0:00:31]}  c5 {[%clk 0:00:52]} 39. Kd1 {[%clk 0:00:31]}  a5 {[%clk 0:00:48]} 40. c4 {[%clk 0:00:30]}  dxc4 {[%clk 0:00:46]} 41. Rxc4 {[%clk 0:00:30]}  Rb4 {[%clk 0:00:45]} 42. Rxe4 {[%clk 0:00:27]}  Rxe4 {[%clk 0:00:40]} 43. Bxe4 {[%clk 0:00:27]}  Rb4 {[%clk 0:00:41]} 44. f3 {[%clk 0:00:25]}  a4 {[%clk 0:00:39]} 45. Kc2 {[%clk 0:00:24]}  c4 {[%clk 0:00:36]} 46. bxc4 {[%clk 0:00:20]}  Rxc4+ {[%clk 0:00:37]} 47. Kd3 {[%clk 0:00:20]}  Rc3+ {[%clk 0:00:36]} 48. Kd2 {[%clk 0:00:20]}  Ra3 {[%clk 0:00:36]} 49. Bb1 {[%clk 0:00:21]}  Bc3+ {[%clk 0:00:32]} 50. Ke2 {[%clk 0:00:21]}  Ke7 {[%clk 0:00:28]} 51. Rh7+ {[%clk 0:00:20]}  Ke6 {[%clk 0:00:27]} 52. f4 {[%clk 0:00:17]}  Bb2 {[%clk 0:00:26]} 53. Rb7 {[%clk 0:00:17]}  Bc1 {[%clk 0:00:25]} 54. f5+ {[%clk 0:00:15]}  Kd6 {[%clk 0:00:23]} 55. Rb6+ {[%clk 0:00:14]}  Kc7 {[%clk 0:00:22]} 56. Re6 {[%clk 0:00:15]}  Bb2 {[%clk 0:00:21]} 57. Kd2 {[%clk 0:00:13]}  Kd7 {[%clk 0:00:20]} 58. Kc2 {[%clk 0:00:13]}  Be5 {[%clk 0:00:20]} 59. Rxe5 {[%clk 0:00:12]}  fxe5 {[%clk 0:00:20]} 60. Kd2 {[%clk 0:00:13]}  Ke7 {[%clk 0:00:19]} 61. g5 {[%clk 0:00:13]}  Kf7 {[%clk 0:00:20]} 62. f6 {[%clk 0:00:13]}  Ke6 {[%clk 0:00:18]} 63. Ke2 {[%clk 0:00:13]}  e4 {[%clk 0:00:18]} 64. Bxe4 {[%clk 0:00:12]}  Rxa2+ {[%clk 0:00:18]} 65. Kd3 {[%clk 0:00:12]}  a3 {[%clk 0:00:18]} 66. Bh7 {[%clk 0:00:12]}  Rf2 {[%clk 0:00:17]} 67. Bg8+ {[%clk 0:00:12]}  Ke5 {[%clk 0:00:17]} 68. Bb3 {[%clk 0:00:12]}  Rf5 {[%clk 0:00:15]} 69. f7 {[%clk 0:00:11]}  Kd6 {[%clk 0:00:15]} 70. g6 {[%clk 0:00:11]}  Ke7 {[%clk 0:00:11]} 71. g7 {[%clk 0:00:10]}  Rxf7 {[%clk 0:00:12]} 72. g8=Q {[%clk 0:00:10]}  Rf5 {[%clk 0:00:11]} 73. Qe6+ {[%clk 0:00:10]}  Kd8 {[%clk 0:00:12]} 74. Qxf5 {[%clk 0:00:11]}  a2 {[%clk 0:00:13]} 75. Bxa2 {[%clk 0:00:11]}  Kc7 {[%clk 0:00:14]} 76. Qe6 {[%clk 0:00:12]}  Kb8 {[%clk 0:00:15]} 77. Qd7 {[%clk 0:00:12]}  Ka8 {[%clk 0:00:15]} 78. Bd5+ {[%clk 0:00:12]}  Kb8 {[%clk 0:00:15]} 79. Qb7# {[%clk 0:00:13]} 1-0


[Site "https://www.chess.com"]

[Event "Titled Tuesday Blitz December 7 2021"]
[White "Nenezic, Marko"]
[Black "Nazari, Arad"]
[WhiteFideId "912123"]
[BlackFideId "12577324"]
[WhiteElo "2484"]
[BlackElo "2119"]
[Result "0-1"]
[Round "10"]
[TimeControl "180+1"]
[Date "2021.12.07"]
[WhiteClock "0:00:43"]
[BlackClock "0:01:32"]

1. d4 {[%clk 0:00:49]}  Nf6 {[%clk 0:02:46]} 2. c4 {[%clk 0:00:50]}  g6 {[%clk 0:02:46]} 3. Nf3 {[%clk 0:00:50]}  Bg7 {[%clk 0:02:45]} 4. Nc3 {[%clk 0:00:51]}  d5 {[%clk 0:02:45]} 5. cxd5 {[%clk 0:00:51]}  Nxd5 {[%clk 0:02:44]} 6. e4 {[%clk 0:00:52]}  Nxc3 {[%clk 0:02:44]} 7. bxc3 {[%clk 0:00:53]}  O-O {[%clk 0:02:44]} 8. Be3 {[%clk 0:00:53]}  c5 {[%clk 0:02:44]} 9. Qd2 {[%clk 0:00:54]}  Nc6 {[%clk 0:02:43]} 10. d5 {[%clk 0:00:54]}  Ne5 {[%clk 0:02:37]} 11. Nxe5 {[%clk 0:00:54]}  Bxe5 {[%clk 0:02:38]} 12. f4 {[%clk 0:00:54]}  Bg7 {[%clk 0:02:37]} 13. Rb1 {[%clk 0:00:51]}  b6 {[%clk 0:02:36]} 14. c4 {[%clk 0:00:50]}  Bb7 {[%clk 0:02:36]} 15. Be2 {[%clk 0:00:49]}  e6 {[%clk 0:02:35]} 16. Bf3 {[%clk 0:00:48]}  Qd7 {[%clk 0:02:27]} 17. O-O {[%clk 0:00:48]}  Rad8 {[%clk 0:02:27]} 18. Rbd1 {[%clk 0:00:48]}  f5 {[%clk 0:02:12]} 19. e5 {[%clk 0:00:47]}  Qa4 {[%clk 0:01:33]} 20. Qc2 {[%clk 0:00:43]}  Qxc2 {[%clk 0:01:32]} 0-1


[Site "https://www.chess.com"]

[Event "Titled Tuesday Blitz December 7 2021"]
[White "Obolenskikh, Dmitry"]
[Black "Csonka, Balazs"]
[WhiteFideId "4156013"]
[BlackFideId "742910"]
[WhiteElo "2512"]
[BlackElo "2404"]
[Result "1-0"]
[Round "10"]
[TimeControl "180+1"]
[Date "2021.12.07"]
[WhiteClock "0:00:42"]
[BlackClock "0:00:01"]

1. Nf3 {[%clk 0:02:59]}  d5 {[%clk 0:02:55]} 2. e3 {[%clk 0:02:58]}  Nf6 {[%clk 0:02:53]} 3. c4 {[%clk 0:02:59]}  c6 {[%clk 0:02:54]} 4. Nc3 {[%clk 0:02:59]}  Nbd7 {[%clk 0:02:53]} 5. d4 {[%clk 0:02:53]}  e6 {[%clk 0:02:52]} 6. b3 {[%clk 0:02:53]}  Bb4 {[%clk 0:02:48]} 7. Bd2 {[%clk 0:02:53]}  O-O {[%clk 0:02:44]} 8. Bd3 {[%clk 0:02:50]}  b6 {[%clk 0:02:20]} 9. O-O {[%clk 0:02:49]}  dxc4 {[%clk 0:02:16]} 10. bxc4 {[%clk 0:02:48]}  c5 {[%clk 0:02:14]} 11. d5 {[%clk 0:02:45]}  Ba6 {[%clk 0:01:19]} 12. e4 {[%clk 0:02:42]}  exd5 {[%clk 0:01:16]} 13. exd5 {[%clk 0:02:34]}  Re8 {[%clk 0:01:14]} 14. Qc2 {[%clk 0:02:26]}  h6 {[%clk 0:01:06]} 15. Rfe1 {[%clk 0:02:25]}  Qc7 {[%clk 0:01:05]} 16. h3 {[%clk 0:02:19]}  Rxe1+ {[%clk 0:00:55]} 17. Rxe1 {[%clk 0:02:18]}  Re8 {[%clk 0:00:55]} 18. Rxe8+ {[%clk 0:02:17]}  Nxe8 {[%clk 0:00:56]} 19. Ne4 {[%clk 0:02:05]}  Bxd2 {[%clk 0:00:40]} 20. Qxd2 {[%clk 0:02:06]}  Bc8 {[%clk 0:00:13]} 21. Qe3 {[%clk 0:02:02]}  Kf8 {[%clk 0:00:12]} 22. Nc3 {[%clk 0:01:52]}  Nd6 {[%clk 0:00:10]} 23. a4 {[%clk 0:01:50]}  Nf6 {[%clk 0:00:10]} 24. Nb5 {[%clk 0:01:47]}  Nxb5 {[%clk 0:00:09]} 25. axb5 {[%clk 0:01:48]}  Ne8 {[%clk 0:00:06]} 26. Ne5 {[%clk 0:01:41]}  Qe7 {[%clk 0:00:05]} 27. Qf4 {[%clk 0:01:39]}  Qf6 {[%clk 0:00:03]} 28. Qxf6 {[%clk 0:01:36]}  Nxf6 {[%clk 0:00:03]} 29. Nc6 {[%clk 0:01:36]}  a5 {[%clk 0:00:02]} 30. bxa6 {[%clk 0:01:32]}  Bxa6 {[%clk 0:00:02]} 31. Ne5 {[%clk 0:01:28]}  Bb7 {[%clk 0:00:02]} 32. f4 {[%clk 0:01:26]}  Ne8 {[%clk 0:00:02]} 33. Kf2 {[%clk 0:01:26]}  Nd6 {[%clk 0:00:03]} 34. Nd7+ {[%clk 0:01:25]}  Ke7 {[%clk 0:00:02]} 35. Nxb6 {[%clk 0:01:26]}  Ba6 {[%clk 0:00:02]} 36. Ke3 {[%clk 0:01:25]}  Kd8 {[%clk 0:00:02]} 37. Na4 {[%clk 0:01:22]}  Bxc4 {[%clk 0:00:02]} 38. Bxc4 {[%clk 0:01:18]}  Nxc4+ {[%clk 0:00:03]} 39. Kd3 {[%clk 0:01:16]}  Nd6 {[%clk 0:00:04]} 40. Nxc5 {[%clk 0:01:16]}  h5 {[%clk 0:00:04]} 41. g4 {[%clk 0:01:16]}  hxg4 {[%clk 0:00:05]} 42. hxg4 {[%clk 0:01:17]}  Kc7 {[%clk 0:00:05]} 43. Kd4 {[%clk 0:01:16]}  Kb6 {[%clk 0:00:05]} 44. Ne4 {[%clk 0:01:17]}  Nb5+ {[%clk 0:00:04]} 45. Ke5 {[%clk 0:01:17]}  Kc7 {[%clk 0:00:04]} 46. g5 {[%clk 0:01:15]}  Kd7 {[%clk 0:00:04]} 47. f5 {[%clk 0:01:15]}  Ke7 {[%clk 0:00:03]} 48. d6+ {[%clk 0:01:14]}  Kd7 {[%clk 0:00:03]} 49. g6 {[%clk 0:01:14]}  fxg6 {[%clk 0:00:03]} 50. fxg6 {[%clk 0:01:14]}  Na7 {[%clk 0:00:01]} 51. Kd5 {[%clk 0:01:14]}  Nb5 {[%clk 0:00:01]} 52. Nc5+ {[%clk 0:01:14]}  Ke8 {[%clk 0:00:02]} 53. Kc6 {[%clk 0:01:12]}  Nd4+ {[%clk 0:00:02]} 54. Kc7 {[%clk 0:01:12]}  Nb5+ {[%clk 0:00:02]} 55. Kc6 {[%clk 0:01:13]}  Nd4+ {[%clk 0:00:02]} 56. Kd5 {[%clk 0:01:13]}  Nb5 {[%clk 0:00:02]} 57. Ne6 {[%clk 0:01:13]}  Kd7 {[%clk 0:00:02]} 58. Nf8+ {[%clk 0:01:11]}  Ke8 {[%clk 0:00:03]} 59. Nh7 {[%clk 0:01:11]}  Kd7 {[%clk 0:00:02]} 60. Nf6+ {[%clk 0:01:11]}  Kd8 {[%clk 0:00:01]} 61. Ng4 {[%clk 0:01:11]}  Kd7 {[%clk 0:00:01]} 62. Ne5+ {[%clk 0:01:11]}  Ke8 {[%clk 0:00:02]} 63. d7+ {[%clk 0:01:08]}  Ke7 {[%clk 0:00:02]} 64. Kc6 {[%clk 0:01:08]}  Nd4+ {[%clk 0:00:02]} 65. Kc7 {[%clk 0:01:08]}  Ne6+ {[%clk 0:00:03]} 66. Kc8 {[%clk 0:01:09]}  Kf6 {[%clk 0:00:02]} 67. Nc6 {[%clk 0:01:07]}  Kxg6 {[%clk 0:00:01]} 68. Nd4 {[%clk 0:01:07]}  Nxd4 {[%clk 0:00:02]} 69. d8=Q {[%clk 0:01:08]}  Ne6 {[%clk 0:00:02]} 70. Qe7 {[%clk 0:01:07]}  Kf5 {[%clk 0:00:02]} 71. Kd7 {[%clk 0:01:04]}  Ng5 {[%clk 0:00:02]} 72. Qxg7 {[%clk 0:01:03]}  Ne4 {[%clk 0:00:02]} 73. Qh7+ {[%clk 0:01:03]}  Ke5 {[%clk 0:00:03]} 74. Kc6 {[%clk 0:01:03]}  Kd4 {[%clk 0:00:02]} 75. Qh4 {[%clk 0:01:03]}  Ke5 {[%clk 0:00:02]} 76. Qh2+ {[%clk 0:01:02]}  Kf5 {[%clk 0:00:02]} 77. Kd5 {[%clk 0:01:01]}  Nf6+ {[%clk 0:00:02]} 78. Kd4 {[%clk 0:01:01]}  Ke6 {[%clk 0:00:03]} 79. Qc7 {[%clk 0:01:00]}  Kf5 {[%clk 0:00:02]} 80. Qf7 {[%clk 0:01:00]}  Kg5 {[%clk 0:00:02]} 81. Qe6 {[%clk 0:00:58]}  Ng4 {[%clk 0:00:02]} 82. Ke4 {[%clk 0:00:57]}  Nf6+ {[%clk 0:00:02]} 83. Kf3 {[%clk 0:00:57]}  Nh5 {[%clk 0:00:01]} 84. Qf7 {[%clk 0:00:54]}  Nf6 {[%clk 0:00:01]} 85. Qe7 {[%clk 0:00:54]}  Kf5 {[%clk 0:00:02]} 86. Qf7 {[%clk 0:00:52]}  Ke5 {[%clk 0:00:02]} 87. Qc4 {[%clk 0:00:51]}  Kf5 {[%clk 0:00:02]} 88. Qf4+ {[%clk 0:00:49]}  Ke6 {[%clk 0:00:03]} 89. Qg5 {[%clk 0:00:48]}  Nd5 {[%clk 0:00:02]} 90. Ke4 {[%clk 0:00:46]}  Nf6+ {[%clk 0:00:03]} 91. Kd4 {[%clk 0:00:46]}  Kf7 {[%clk 0:00:03]} 92. Ke5 {[%clk 0:00:45]}  Nd7+ {[%clk 0:00:04]} 93. Kd6 {[%clk 0:00:44]}  Nf6 {[%clk 0:00:03]} 94. Qf5 {[%clk 0:00:44]}  Kg7 {[%clk 0:00:03]} 95. Ke6 {[%clk 0:00:44]}  Ng8 {[%clk 0:00:02]} 96. Qg5+ {[%clk 0:00:42]}  Kh7 {[%clk 0:00:02]} 97. Kf7 {[%clk 0:00:41]}  Nh6+ {[%clk 0:00:01]} 98. Kf8 {[%clk 0:00:42]} 1-0


[Site "https://www.chess.com"]

[Event "Titled Tuesday Blitz December 7 2021"]
[White "Obolentseva, Alexandra"]
[Black "Mihailidis, Anastasios"]
[WhiteFideId "24153648"]
[BlackFideId "4205588"]
[WhiteElo "2113"]
[BlackElo "2312"]
[Result "1/2-1/2"]
[Round "10"]
[TimeControl "180+1"]
[Date "2021.12.07"]
[WhiteClock "0:00:46"]
[BlackClock "0:00:04"]

1. d4 {[%clk 0:03:00]}  d5 {[%clk 0:02:58]} 2. c4 {[%clk 0:03:00]}  e6 {[%clk 0:02:58]} 3. Nc3 {[%clk 0:02:59]}  Nf6 {[%clk 0:02:59]} 4. cxd5 {[%clk 0:02:58]}  exd5 {[%clk 0:02:59]} 5. Bg5 {[%clk 0:02:58]}  Be7 {[%clk 0:02:59]} 6. e3 {[%clk 0:02:55]}  h6 {[%clk 0:02:59]} 7. Bh4 {[%clk 0:02:54]}  O-O {[%clk 0:02:58]} 8. Bd3 {[%clk 0:02:54]}  c6 {[%clk 0:02:59]} 9. Qc2 {[%clk 0:02:54]}  Re8 {[%clk 0:02:57]} 10. Nge2 {[%clk 0:02:53]}  Ne4 {[%clk 0:02:55]} 11. Bxe7 {[%clk 0:02:48]}  Qxe7 {[%clk 0:02:56]} 12. O-O-O {[%clk 0:02:44]}  Nxf2 {[%clk 0:02:52]} 13. Ng3 {[%clk 0:02:30]}  Qxe3+ {[%clk 0:02:41]} 14. Kb1 {[%clk 0:02:29]}  Nxh1 {[%clk 0:02:38]} 15. Rxh1 {[%clk 0:02:27]}  Qxd4 {[%clk 0:02:27]} 16. Rf1 {[%clk 0:02:24]}  Re7 {[%clk 0:02:07]} 17. Nce2 {[%clk 0:02:16]}  Qe3 {[%clk 0:02:00]} 18. a3 {[%clk 0:02:05]}  Bg4 {[%clk 0:01:44]} 19. Nf4 {[%clk 0:02:03]}  Nd7 {[%clk 0:01:36]} 20. Bf5 {[%clk 0:01:55]}  Ne5 {[%clk 0:01:10]} 21. Ngh5 {[%clk 0:01:34]}  Bxf5 {[%clk 0:01:04]} 22. Qxf5 {[%clk 0:01:32]}  Qe4+ {[%clk 0:01:04]} 23. Qxe4 {[%clk 0:01:32]}  dxe4 {[%clk 0:01:04]} 24. Ng3 {[%clk 0:01:31]}  Nd3 {[%clk 0:00:56]} 25. Nxe4 {[%clk 0:01:29]}  Rxe4 {[%clk 0:00:49]} 26. Nxd3 {[%clk 0:01:28]}  b6 {[%clk 0:00:49]} 27. Rf2 {[%clk 0:01:27]}  Rd8 {[%clk 0:00:47]} 28. Nb4 {[%clk 0:01:27]}  c5 {[%clk 0:00:47]} 29. Nc6 {[%clk 0:01:27]}  Rd7 {[%clk 0:00:47]} 30. Nb8 {[%clk 0:01:23]}  Rb7 {[%clk 0:00:44]} 31. Nc6 {[%clk 0:01:21]}  Rc7 {[%clk 0:00:43]} 32. Nb8 {[%clk 0:01:21]}  Re8 {[%clk 0:00:35]} 33. Na6 {[%clk 0:01:21]}  Rb7 {[%clk 0:00:32]} 34. Ka2 {[%clk 0:01:17]}  Re4 {[%clk 0:00:31]} 35. Rd2 {[%clk 0:01:17]}  Kf8 {[%clk 0:00:28]} 36. Rd8+ {[%clk 0:01:15]}  Ke7 {[%clk 0:00:28]} 37. Rg8 {[%clk 0:01:16]}  Rg4 {[%clk 0:00:25]} 38. g3 {[%clk 0:01:15]}  h5 {[%clk 0:00:23]} 39. Nb8 {[%clk 0:01:15]}  g6 {[%clk 0:00:20]} 40. Nc6+ {[%clk 0:01:15]}  Kf6 {[%clk 0:00:20]} 41. b4 {[%clk 0:01:08]}  cxb4 {[%clk 0:00:19]} 42. axb4 {[%clk 0:01:09]}  a6 {[%clk 0:00:18]} 43. Kb3 {[%clk 0:01:08]}  a5 {[%clk 0:00:17]} 44. b5 {[%clk 0:01:07]}  Rd7 {[%clk 0:00:13]} 45. Rb8 {[%clk 0:01:05]}  Rd3+ {[%clk 0:00:12]} 46. Kc2 {[%clk 0:01:05]}  Ra3 {[%clk 0:00:10]} 47. Rxb6 {[%clk 0:01:05]}  Rc4+ {[%clk 0:00:10]} 48. Kb2 {[%clk 0:01:03]}  Rcc3 {[%clk 0:00:04]} 49. Nxa5+ {[%clk 0:00:55]}  Kg5 {[%clk 0:00:04]} 50. Nb7 {[%clk 0:00:44]}  Rcb3+ {[%clk 0:00:03]} 51. Kc2 {[%clk 0:00:44]}  Rc3+ {[%clk 0:00:03]} 52. Kb2 {[%clk 0:00:45]}  Rcb3+ {[%clk 0:00:03]} 53. Kc2 {[%clk 0:00:45]}  Rc3+ {[%clk 0:00:04]} 54. Kb2 {[%clk 0:00:46]} 1/2-1/2


[Site "https://www.chess.com"]